bitfinex/quotes_SOLUSD_20241229
["timestamp","ask_amount","ask_price","bid_price","bid_amount"]
[1735443577602,8.09177633,194.85,194.76,20.0]
[1735443578508,8.09177633,194.85,194.76,30.17607685]
[1735443582003,8.09177633,194.85,194.76,20.0]
[1735443585510,8.09177633,194.85,194.76,30.17607685]
[1735443588013,8.09177633,194.85,194.76,20.0]
[1735443595119,23.776884,194.84,194.75,1.6443]
[1735443595415,23.776884,194.84,194.73,6.1835]
[1735443596306,8.09177633,194.81,194.73,6.1835]
[1735443597213,8.09177633,194.81,194.73,16.35957685]
[1735443598013,8.09177633,194.81,194.73,6.1835]
[1735443598217,8.09177633,194.81,194.73,16.35957685]
[1735443599509,23.776884,194.8,194.73,6.1835]
[1735443599712,23.776884,194.8,194.71,1.615]
[1735443599924,23.776884,194.8,194.72,20.0]
[1735443600220,8.09177633,194.79,194.72,20.0]
[1735443601614,8.09177633,194.79,194.68,0.77021639]
[1735443601615,23.776884,194.78,194.68,10.17607685]
[1735443601811,23.776884,194.78,194.67,10.17607685]
[1735443602018,23.776884,194.78,194.7,20.0]
[1735443602591,8.09177633,194.77,194.7,20.0]
[1735443603105,23.776884,194.76,194.7,20.0]
[1735443604415,23.776884,194.76,194.67,30.17607685]
[1735443605222,31.86866033,194.76,194.67,30.17607685]
[1735443605911,23.776884,194.76,194.67,30.17607685]
[1735443607014,8.09177633,194.78,194.68,10.17607685]
[1735443607211,8.09177633,194.78,194.69,10.17607685]
[1735443608421,8.09177633,194.78,194.68,10.17607685]
[1735443608621,8.09177633,194.79,194.68,10.17607685]
[1735443609319,23.776884,194.78,194.68,10.17607685]
[1735443609615,23.776884,194.78,194.67,20.0]
[1735443609616,31.86866033,194.78,194.67,20.0]
[1735443609814,31.86866033,194.78,194.66,11.79107685]
[1735443610213,23.776884,194.78,194.69,20.0]
[1735443611644,23.776884,194.78,194.67,20.0]
[1735443611795,23.776884,194.76,194.64,6.3459]
[1735443612202,23.776884,194.76,194.63,20.0]
[1735443612608,31.86866033,194.76,194.63,20.0]
[1735443613320,8.09177633,194.75,194.61,1.54]
[1735443613522,23.776884,194.74,194.61,1.54]
[1735443614925,23.776884,194.72,194.61,1.54]
[1735443616427,31.86866033,194.72,194.61,1.54]
[1735443616929,23.776884,194.72,194.61,1.54]
[1735443617714,23.776884,194.73,194.61,1.54]
[1735443618030,8.09177633,194.74,194.61,1.54]
[1735443618530,23.776884,194.73,194.61,1.54]
[1735443618908,23.776884,194.73,194.61,11.71607685]
[1735443619109,8.09177633,194.74,194.63,30.17607685]
[1735443619309,8.09177633,194.75,194.63,30.17607685]
[1735443620237,23.776884,194.74,194.63,30.17607685]
[1735443620539,8.09177633,194.76,194.63,30.94653796]
[1735443621026,16.20837633,194.77,194.64,10.17607685]
[1735443621204,16.20837633,194.77,194.63,20.77046111]
[1735443621205,9.69267633,194.77,194.67,10.17607685]
[1735443621405,8.09177633,194.77,194.67,16.76347685]
[1735443621721,23.776884,194.78,194.67,16.76347685]
[1735443622133,8.09177633,194.79,194.67,16.76347685]
[1735443622315,8.09177633,194.79,194.69,1.54]
[1735443622508,8.09177633,194.79,194.69,11.71607685]
[1735443622710,8.09177633,194.8,194.7,10.17607685]
[1735443623928,1.6009,194.81,194.7,10.17607685]
[1735443624130,23.776884,194.8,194.7,10.17607685]
[1735443624815,23.776884,194.8,194.69,12.48632842]
[1735443625736,23.776884,194.8,194.69,2.31025157]
[1735443625936,23.776884,194.8,194.69,1.54]
[1735443626335,8.09177633,194.83,194.73,20.0]
[1735443626522,8.09177633,194.83,194.75,16.38617685]
[1735443626725,8.09177633,194.82,194.75,16.38617685]
[1735443627747,8.09177633,194.86,194.75,16.38617685]
[1735443627951,8.09177633,194.86,194.75,6.2101]
[1735443628451,23.776884,194.86,194.75,6.2101]
[1735443629139,8.09177633,194.87,194.75,6.2101]
[1735443629140,23.776884,194.87,194.75,6.2101]
[1735443629931,23.776884,194.87,194.75,16.38617685]
[1735443630140,23.776884,194.87,194.75,17.15613017]
[1735443630443,23.776884,194.87,194.75,16.38617685]
[1735443632840,23.776884,194.87,194.75,6.2101]
[1735443633935,8.09177633,194.88,194.78,20.0]
[1735443634125,8.09177633,194.88,194.81,10.17607685]
[1735443634325,8.09177633,194.88,194.82,0.76971346]
[1735443635342,110.21414639,194.91,194.82,0.76971346]
[1735443635343,23.776884,194.93,194.82,0.76971346]
[1735443636321,23.776884,194.93,194.81,10.17607685]
[1735443637143,23.776884,194.93,194.82,0.76971834]
[1735443637444,23.776884,194.93,194.81,10.17607685]
[1735443638047,23.776884,194.93,194.8,10.94578969]
[1735443639447,23.776884,194.93,194.8,0.76971284]
[1735443639650,23.776884,194.93,194.8,10.94578969]
[1735443642252,23.776884,194.93,194.8,0.76971284]
[1735443642439,23.776884,194.93,194.8,10.94578969]
[1735443643353,23.776884,194.93,194.81,10.17607685]
[1735443645846,8.09177633,194.96,194.84,10.17607685]
[1735443646152,8.09177633,194.96,194.84,10.94566975]
[1735443646355,6.5465,194.97,194.84,10.94566975]
[1735443646949,23.776884,194.96,194.84,10.94566975]
[1735443649547,23.776884,194.96,194.84,0.7695929]
[1735443649726,23.776884,194.96,194.85,20.0]
[1735443651150,8.09177633,195.0,194.88,10.17607685]
[1735443651366,8.09177633,195.0,194.9,10.17607685]
[1735443652454,23.776884,195.03,194.9,10.17607685]
[1735443653256,20.0,195.0,194.9,10.17607685]
[1735443654551,20.0,195.0,194.89,17.87957685]
[1735443654728,20.0,195.0,194.89,7.7035]
[1735443655734,20.0,195.0,194.89,17.87957685]
[1735443656660,23.776884,194.99,194.89,7.7035]
[1735443657759,23.776884,194.99,194.84,1.6069]
[1735443657936,23.776884,194.99,194.85,10.17607685]
[1735443658367,23.776884,194.99,194.86,10.17607685]
[1735443659249,23.776884,194.99,194.88,20.0]
[1735443660764,23.776884,194.99,194.86,30.17607685]
[1735443663262,23.776884,194.99,194.87,10.17607685]
[1735443663867,23.776884,194.99,194.87,10.94563025]
[1735443664253,23.776884,194.99,194.88,10.17607685]
[1735443665272,20.0,195.01,194.88,10.17607685]
[1735443665469,23.776884,195.0,194.87,30.94563025]
[1735443666970,23.776884,195.0,194.87,20.0]
[1735443667758,23.776884,195.0,194.87,30.17607685]
[1735443669058,23.776884,195.0,194.88,10.17607685]
[1735443669260,23.776884,195.0,194.87,30.94554755]
[1735443670754,23.776884,195.0,194.88,10.17607685]
[1735443670953,23.776884,195.0,194.89,0.76941605]
[1735443671265,23.776884,195.0,194.87,30.17607685]
[1735443671656,23.776884,195.01,194.87,30.17607685]
[1735443672481,31.86866033,195.01,194.87,30.17607685]
[1735443672991,8.09177633,195.0,194.87,30.17607685]
[1735443673179,8.09177633,195.0,194.89,20.0]
[1735443674179,23.776884,195.01,194.85,0.76942442]
[1735443674180,23.776884,194.98,194.85,0.76942442]
[1735443674365,23.776884,194.98,194.87,20.0]
[1735443674892,23.776884,194.98,194.84,69.1069]
[1735443674893,23.776884,194.96,194.86,20.0]
[1735443675778,31.86866033,194.96,194.86,20.0]
[1735443675978,31.86866033,194.96,194.84,1.6069]
[1735443676160,23.776884,194.92,194.79,1.5497]
[1735443677480,23.776884,194.9,194.79,1.5497]
[1735443678578,31.86866033,194.9,194.79,1.5497]
[1735443679073,23.776884,194.88,194.79,1.5497]
[1735443681484,8.09177633,194.88,194.79,2.31960516]
[1735443682282,8.09177633,194.89,194.79,2.31960516]
[1735443684482,8.09177633,194.89,194.79,1.5497]
[1735443685770,8.09177633,194.88,194.79,1.5497]
[1735443686788,8.09177633,194.89,194.79,1.5497]
[1735443687783,23.776884,194.88,194.79,1.5497]
[1735443688485,31.86866033,194.88,194.79,1.5497]
[1735443689389,8.09177633,194.87,194.79,1.5497]
[1735443692293,8.09177633,194.87,194.78,6.2377]
[1735443693084,23.776884,194.86,194.78,6.2377]
[1735443693291,23.776884,194.86,194.77,20.0]
[1735443693680,31.86866033,194.86,194.77,20.0]
[1735443695195,23.776884,194.86,194.77,20.0]
[1735443695897,23.776884,194.86,194.76,20.0]
[1735443696194,23.776884,194.86,194.74,1.5829]
[1735443696695,23.776884,194.83,194.74,1.5829]
[1735443698096,23.776884,194.84,194.74,1.5829]
[1735443699896,23.776884,194.8,194.69,1.5038]
[1735443704998,9.71987633,194.83,194.69,11.67987685]
[1735443705184,9.71987633,194.83,194.74,20.0]
[1735443706904,23.776884,194.82,194.7,10.17607685]
[1735443707283,23.776884,194.82,194.72,20.0]
[1735443710418,23.776884,194.82,194.71,20.0]
[1735443710723,23.776884,194.82,194.72,10.17607685]
[1735443712004,9.71987633,194.83,194.75,16.49017685]
[1735443712005,8.09177633,194.83,194.75,16.49017685]
[1735443712210,8.09177633,194.83,194.78,10.17607685]
[1735443712507,8.09177633,194.83,194.78,30.17607685]
[1735443714412,8.09177633,194.83,194.78,20.0]
[1735443714806,8.09177633,194.83,194.76,1.5038]
[1735443715904,23.776884,194.87,194.76,1.5038]
[1735443718410,23.776884,194.87,194.76,2.27381809]
[1735443718623,23.776884,194.87,194.78,20.0]
[1735443719316,23.776884,194.87,194.75,6.3141]
[1735443719686,20.0,194.84,194.75,6.3141]
[1735443719894,23.776884,194.83,194.75,6.3141]
[1735443720514,23.776884,194.83,194.71,2.33283054]
[1735443721306,23.776884,194.83,194.73,20.0]
[1735443723814,31.86866033,194.83,194.73,20.0]
[1735443725909,23.776884,194.81,194.73,20.0]
[1735443726713,31.86866033,194.81,194.73,20.0]
[1735443731895,8.09177633,194.8,194.73,20.0]
[1735443733618,31.86866033,194.81,194.73,20.0]
[1735443734620,8.09177633,194.8,194.73,20.0]
[1735443735219,8.09177633,194.8,194.71,2.33304915]
[1735443736320,8.09177633,194.8,194.73,20.0]
[1735443739195,8.09177633,194.8,194.74,10.17607685]
[1735443739400,8.09177633,194.8,194.76,10.17607685]
[1735443739600,8.09177633,194.8,194.76,16.37747685]
[1735443739798,8.09177633,194.82,194.76,16.37747685]
[1735443740910,8.09177633,194.84,194.76,16.37747685]
[1735443741313,8.09177633,194.84,194.76,6.2014]
[1735443742522,8.09177633,194.84,194.77,0.7699224]
[1735443743202,8.09177633,194.85,194.77,0.7699224]
[1735443745427,8.09177633,194.85,194.76,6.97132909]
[1735443746002,8.09177633,194.85,194.76,6.2014]
[1735443746307,8.09177633,194.83,194.76,6.2014]
[1735443749222,8.09177633,194.83,194.76,6.97139332]
[1735443750003,8.09177633,194.84,194.76,6.97139332]
[1735443750928,8.09177633,194.85,194.76,6.97139332]
[1735443753446,8.09177633,194.85,194.76,6.2014]
[1735443753733,31.86866033,194.84,194.75,67.5]
[1735443753913,31.86866033,194.84,194.74,20.0]
[1735443754317,8.09177633,194.81,194.74,20.0]
[1735443760336,8.09177633,194.81,194.75,20.0]
[1735443762140,8.09177633,194.8,194.75,20.0]
[1735443765143,8.09177633,194.8,194.72,10.94602784]
[1735443765619,8.09177633,194.8,194.75,20.0]
[1735443768719,8.09177633,194.8,194.74,20.0]
[1735443771047,8.09177633,194.8,194.75,0.77007705]
[1735443771234,8.09177633,194.8,194.76,10.17607685]
[1735443771423,8.09177633,194.81,194.74,30.94597127]
[1735443771622,8.09177633,194.81,194.76,20.0]
[1735443772132,8.09177633,194.82,194.76,20.0]
[1735443773345,8.09177633,194.82,194.74,20.76989442]
[1735443773547,8.09177633,194.82,194.76,20.0]
[1735443778755,8.09177633,194.81,194.76,20.0]
[1735443779255,8.09177633,194.82,194.76,20.0]
[1735443780352,8.09177633,194.82,194.74,0.76989442]
[1735443780542,8.09177633,194.82,194.73,0.77004527]
[1735443780738,8.09177633,194.82,194.74,20.0]
[1735443780939,8.09177633,194.81,194.74,20.0]
[1735443781857,8.09177633,194.8,194.74,20.0]
[1735443783063,8.09177633,194.8,194.75,20.0]
[1735443786161,8.09177633,194.81,194.75,20.0]
[1735443786663,8.09177633,194.8,194.75,20.0]
[1735443795271,8.09177633,194.8,194.73,0.77008112]
[1735443795473,8.09177633,194.8,194.75,20.0]
[1735443796376,8.09177633,194.8,194.74,30.17607685]
[1735443796575,8.09177633,194.8,194.75,0.76997214]
[1735443797272,8.09177633,194.8,194.76,20.0]
[1735443798476,8.09177633,194.81,194.76,20.0]
[1735443800179,8.09177633,194.81,194.74,20.77001857]
[1735443800363,8.09177633,194.81,194.75,20.0]
[1735443801784,8.09177633,194.8,194.75,20.0]
[1735443806079,8.09177633,194.79,194.75,20.0]
[1735443807186,8.09177633,194.8,194.75,20.0]
[1735443815701,8.09177633,194.8,194.77,20.0]
[1735443816604,8.09177633,194.82,194.77,20.0]
[1735443817196,8.09177633,194.83,194.77,20.0]
[1735443818507,8.09177633,194.84,194.77,20.0]
[1735443821915,8.09177633,194.83,194.77,20.0]
[1735443825207,8.09177633,194.83,194.75,67.5]
[1735443825399,8.09177633,194.83,194.75,68.26999138]
[1735443825997,8.09177633,194.83,194.77,20.0]
[1735443830517,8.09177633,194.84,194.77,20.0]
[1735443837596,8.09177633,194.84,194.77,104.07937685]
[1735443837800,8.09177633,194.84,194.8,20.0]
[1735443838221,8.09177633,194.86,194.8,20.0]
[1735443838425,8.09177633,194.86,194.8,20.76978932]
[1735443838920,16.15096467,194.87,194.8,20.76978932]
[1735443838921,8.09177633,194.87,194.8,20.76978932]
[1735443839125,8.09177633,194.87,194.8,20.0]
[1735443842533,8.09177633,194.84,194.8,20.0]
[1735443843432,8.09177633,194.84,194.78,67.5]
[1735443844037,8.09177633,194.84,194.77,6.4033]
[1735443845941,8.09177633,194.84,194.78,0.76995227]
[1735443846944,8.09177633,194.85,194.78,0.76995227]
[1735443851322,8.09177633,194.85,194.77,6.4033]
[1735443851635,8.09177633,194.84,194.77,6.4033]
[1735443852346,8.09177633,194.85,194.77,6.4033]
[1735443853943,8.09177633,194.85,194.8,20.0]
[1735443854329,8.09177633,194.84,194.8,20.0]
[1735443855242,8.09177633,194.84,194.78,0.76988857]
[1735443856046,8.09177633,194.84,194.8,20.0]
[1735443856647,8.09177633,194.85,194.8,20.0]
[1735443861453,8.09177633,194.87,194.8,20.0]
[1735443863348,8.09177633,194.87,194.78,68.26988857]
[1735443863728,8.09177633,194.87,194.78,67.5]
[1735443864786,8.09177633,194.86,194.78,67.5]
[1735443865057,8.09177633,194.86,194.77,73.9033]
[1735443865351,8.09177633,194.85,194.77,73.9033]
[1735443866125,8.09177633,194.84,194.77,67.5]
[1735443867055,8.09177633,194.82,194.77,67.5]
[1735443867663,35.72482425,194.85,194.77,67.5]
[1735443867664,8.09177633,194.81,194.77,67.5]
[1735443868052,8.09177633,194.81,194.74,68.26993778]
[1735443869265,8.09177633,194.81,194.75,20.0]
[1735443870572,8.09177633,194.81,194.76,20.0]
[1735443871348,8.09177633,194.81,194.75,20.0]
[1735443871548,8.09177633,194.81,194.75,20.76995185]
[1735443872354,8.09177633,194.82,194.75,20.76995185]
[1735443873667,8.09177633,194.83,194.75,20.76995185]
[1735443874068,8.09177633,194.83,194.75,88.26995185]
[1735443874672,8.09177633,194.82,194.75,88.26995185]
[1735443876448,8.09177633,194.82,194.75,87.5]
[1735443877145,8.09177633,194.82,194.75,20.0]
[1735443877360,8.09177633,194.81,194.75,20.0]
[1735443882392,16.15096467,194.83,194.75,20.0]
[1735443882393,8.09177633,194.82,194.75,20.0]
[1735443887502,8.09177633,194.81,194.75,20.0]
[1735443888199,8.09177633,194.82,194.75,20.0]
[1735443892798,8.09177633,194.8,194.75,20.0]
[1735443894412,8.09177633,194.81,194.75,20.0]
[1735443895800,8.09177633,194.82,194.75,20.0]
[1735443897107,8.09177633,194.81,194.75,20.0]
[1735443900411,8.09177633,194.81,194.72,8.62015736]
[1735443900701,8.09177633,194.81,194.69,67.5]
[1735443900903,8.09177633,194.8,194.72,20.0]
[1735443901705,8.09177633,194.79,194.72,20.0]
[1735443902487,8.09177633,194.78,194.72,20.0]
[1735443902909,8.09177633,194.79,194.72,20.0]
[1735443907218,8.09177633,194.79,194.75,10.17607685]
[1735443907520,8.09177633,194.8,194.76,10.94605528]
[1735443907891,8.09177633,194.8,194.78,20.0]
[1735443908310,8.09177633,194.85,194.78,20.0]
[1735443909021,8.09177633,194.86,194.78,20.0]
[1735443914318,23.776884,194.85,194.76,67.5]
[1735443914515,23.776884,194.83,194.73,1.6269]
[1735443915296,8.09177633,194.81,194.73,1.6269]
[1735443916000,8.09177633,194.8,194.73,1.6269]
[1735443916219,8.09177633,194.8,194.71,67.5]
[1735443919095,8.09177633,194.8,194.69,10.94629876]
[1735443921822,8.09177633,194.8,194.69,0.77022191]
[1735443922325,8.09177633,194.8,194.72,20.0]
[1735443924227,8.09177633,194.8,194.72,88.27018928]
[1735443924456,8.09177633,194.8,194.77,20.0]
[1735443924638,8.09177633,194.8,194.77,87.5]
[1735443924832,8.09177633,194.8,194.77,98.44606931]
[1735443925131,8.09177633,194.85,194.77,97.67607685]
[1735443925424,8.09177633,194.85,194.78,68.26983889]
[1735443925638,8.09177633,194.86,194.78,68.26983889]
[1735443926004,8.09177633,194.86,194.78,67.5]
[1735443926625,8.09177633,194.86,194.78,68.26993573]
[1735443927808,8.09177633,194.86,194.78,78.44601258]
[1735443928355,8.09177633,194.86,194.81,20.0]
[1735443928654,16.15096467,194.88,194.81,68.26974012]
[1735443928655,8.09177633,194.88,194.81,68.26974012]
[1735443929352,8.09177633,194.91,194.81,68.26974012]
[1735443930556,8.09177633,194.91,194.81,67.5]
[1735443931360,23.776884,194.9,194.81,67.5]
[1735443931525,8.09177633,194.89,194.77,67.5]
[1735443931728,25.339984,194.88,194.76,73.6039]
[1735443932455,8.09177633,194.86,194.76,73.6039]
[1735443933162,8.09177633,194.85,194.76,73.6039]
[1735443935153,23.776884,194.84,194.75,1.6095]
[1735443935443,20.0,194.81,194.7,69.1095]
[1735443935637,23.776884,194.8,194.7,1.6095]
[1735443936744,8.09177633,194.79,194.7,1.6095]
[1735443939352,31.86866033,194.8,194.7,1.6095]
[1735443943454,8.09177633,194.8,194.7,1.6095]
[1735443943668,8.09177633,194.8,194.72,20.0]
[1735443944454,8.09177633,194.83,194.72,20.0]
[1735443944662,8.09177633,194.83,194.71,20.0]
[1735443945059,8.09177633,194.82,194.71,20.0]
[1735443945364,23.776884,194.81,194.7,1.6095]
[1735443945748,8.09177633,194.8,194.7,1.6095]
[1735443946761,8.09177633,194.79,194.7,1.6095]
[1735443947057,8.09177633,194.79,194.71,67.5]
[1735443947250,8.09177633,194.79,194.72,0.77008767]
[1735443947750,8.09177633,194.8,194.72,0.77008767]
[1735443947940,8.09177633,194.8,194.71,67.5]
[1735443948563,8.09177633,194.83,194.71,67.5]
[1735443949967,8.09177633,194.82,194.71,67.5]
[1735443950377,23.776884,194.81,194.71,20.0]
[1735443951166,31.86866033,194.81,194.71,20.0]
[1735443958676,8.09177633,194.8,194.71,20.0]
[1735443961467,31.86866033,194.81,194.71,20.0]
[1735443962276,8.09177633,194.8,194.71,20.0]
[1735443966067,31.86866033,194.81,194.71,20.0]
[1735443968483,8.09177633,194.8,194.71,20.0]
[1735443969181,8.09177633,194.79,194.71,20.0]
[1735443970772,8.09177633,194.8,194.71,20.0]
[1735443973588,8.09177633,194.79,194.71,20.0]
[1735443974491,8.09177633,194.8,194.71,20.0]
[1735443978884,8.09177633,194.79,194.71,20.0]
[1735443981293,8.09177633,194.78,194.71,20.0]
[1735443981695,8.09177633,194.78,194.7,1.6095]
[1735443982992,8.09177633,194.77,194.7,1.6095]
[1735443983294,8.09177633,194.76,194.7,1.6095]
[1735443986693,8.09177633,194.75,194.7,1.6095]
[1735443987197,8.09177633,194.74,194.7,1.6095]
[1735443990093,8.09177633,194.74,194.71,20.0]
[1735443991902,8.09177633,194.75,194.71,20.0]
[1735443993503,8.09177633,194.75,194.7,1.6095]
[1735443994296,8.09177633,194.74,194.68,73.6039]
[1735443994595,8.09177633,194.74,194.65,1.5631]
[1735443994596,8.09177633,194.74,194.65,69.0631]
[1735443994794,8.09177633,194.75,194.65,69.0631]
[1735443995689,8.09177633,194.72,194.65,69.0631]
[1735443996407,8.09177633,194.71,194.65,69.0631]
[1735443997505,8.09177633,194.71,194.66,20.0]
[1735443999406,8.09177633,194.72,194.66,20.0]
[1735444003715,8.09177633,194.72,194.65,69.0631]
[1735444004089,8.09177633,194.72,194.65,67.5]
[1735444004609,8.09177633,194.7,194.63,6.6365]
[1735444005289,8.09177633,194.69,194.6,69.1591]
[1735444006696,8.09177633,194.68,194.6,69.1591]
[1735444007304,8.09177633,194.67,194.6,69.1591]
[1735444007914,8.09177633,194.68,194.6,69.1591]
[1735444008407,8.09177633,194.67,194.6,69.1591]
[1735444009113,8.09177633,194.68,194.6,69.1591]
[1735444009287,8.09177633,194.68,194.6,1.6591]
[1735444010433,8.09177633,194.68,194.59,74.0262]
[1735444011288,23.776884,194.68,194.59,6.5262]
[1735444014216,31.86866033,194.68,194.59,6.5262]
[1735444018719,31.86866033,194.68,194.56,67.5]
[1735444018910,31.86866033,194.68,194.55,7.6611]
[1735444018911,31.86866033,194.68,194.58,20.0]
[1735444020305,31.86866033,194.68,194.55,7.6611]
[1735444020621,8.09177633,194.67,194.58,20.0]
[1735444020996,8.09177633,194.67,194.64,67.5]
[1735444021200,8.09177633,194.68,194.64,77.67607685]
[1735444021608,8.09177633,194.68,194.64,67.5]
[1735444022501,23.776884,194.76,194.64,67.5]
[1735444028527,31.86866033,194.76,194.64,67.5]
[1735444031631,8.09177633,194.75,194.64,67.5]
[1735444032131,23.776884,194.74,194.64,67.5]
[1735444032716,20.0,194.72,194.64,67.5]
[1735444033301,20.0,194.72,194.6,67.5]
[1735444035532,20.0,194.71,194.6,67.5]
[1735444035931,8.09177633,194.73,194.64,111.276884]
[1735444036118,8.09177633,194.73,194.68,87.5]
[1735444036441,8.09177633,194.71,194.68,88.27028288]
[1735444036938,8.09177633,194.71,194.68,87.5]
[1735444037104,20.589801,194.94,194.68,87.5]
[1735444037105,8.09177633,194.78,194.68,87.5]
[1735444039130,0.10589949,194.72,194.68,87.5]
[1735444039735,0.10589949,194.72,194.69,0.77025732]
[1735444040320,0.10589949,194.72,194.69,68.27025732]
[1735444041938,0.10589949,194.72,194.71,20.0]
[1735444042134,0.10589949,194.72,194.71,104.81785147]
[1735444042427,0.10589949,194.72,194.71,129.46926085]
[1735444043135,8.09177633,194.81,194.72,23.776884]
[1735444043431,8.09177633,194.81,194.75,87.5]
[1735444043640,8.09177633,194.84,194.76,0.76989546]
[1735444044619,8.09177633,194.84,194.79,20.0]
[1735444044818,8.09177633,194.87,194.79,20.0]
[1735444045456,1.5233,194.89,194.79,20.0]
[1735444049421,23.776884,194.9,194.79,27.689]
[1735444050238,8.09177633,194.91,194.79,95.189]
[1735444050458,8.09177633,194.91,194.8,92.04672786]
[1735444050656,8.09177633,194.91,194.8,101.45296085]
[1735444050943,8.09177633,194.91,194.84,23.776884]
[1735444051146,8.09177633,194.91,194.84,0.76956512]
[1735444051525,23.776884,194.96,194.83,67.5]
[1735444052254,23.776884,194.97,194.83,67.5]
[1735444053248,20.0,194.95,194.83,67.5]
[1735444055122,23.776884,194.94,194.83,67.5]
[1735444055317,25.389784,194.94,194.83,67.5]
[1735444055524,25.389784,194.94,194.79,7.689]
[1735444055525,8.09177633,194.99,194.86,7.689]
[1735444055825,8.09177633,194.99,194.88,87.5]
[1735444056039,9.70467633,195.0,194.88,87.5]
[1735444057840,1.6129,195.0,194.88,87.5]
[1735444058246,23.776884,195.01,194.88,87.5]
[1735444058420,8.09177633,195.02,194.88,97.67607685]
[1735444058940,23.776884,195.02,194.92,20.0]
[1735444060150,43.776884,195.02,194.92,20.0]
[1735444070742,8.09177633,195.07,194.92,20.0]
[1735444071255,43.776884,195.03,194.92,20.0]
[1735444071441,8.09177633,195.07,194.92,20.0]
[1735444071442,8.09177633,195.07,194.96,20.0]
[1735444071640,8.09177633,195.06,194.96,20.0]
[1735444072535,1.5048,195.08,194.96,20.0]
[1735444072734,43.776884,195.07,194.96,20.0]
[1735444079763,43.776884,195.07,194.93,75.5253]
[1735444081036,20.0,195.07,194.93,75.5253]
[1735444081764,21.5048,195.08,194.93,75.5253]
[1735444082170,8.09177633,195.11,194.94,10.17607685]
[1735444082348,8.09177633,195.11,195.0,75.6785]
[1735444082665,8.09177633,195.11,195.0,76.44746499]
[1735444083241,8.09177633,195.11,195.0,75.6785]
[1735444083443,20.0,195.08,195.0,74.1308]
[1735444084169,23.776884,195.09,195.0,6.6308]
[1735444087568,23.776884,195.09,194.96,69.93431787]
[1735444087779,20.0,195.06,194.96,69.1652]
[1735444089649,23.776884,195.05,194.96,69.1652]
[1735444090671,23.776884,195.05,194.96,1.6652]
[1735444090870,8.09177633,195.09,194.96,69.1652]
[1735444091085,9.61657633,195.1,194.97,10.17607685]
[1735444091372,8.09177633,195.1,195.0,87.5]
[1735444091790,23.776884,195.11,195.0,87.5]
[1735444092447,23.776884,195.12,195.0,87.5]
[1735444093173,31.86866033,195.12,195.0,87.5]
[1735444093981,31.86866033,195.12,195.0,67.5]
[1735444094155,23.776884,195.08,195.0,67.5]
[1735444095481,31.86866033,195.08,195.0,67.5]
[1735444095860,8.09177633,195.08,195.0,67.5]
[1735444096796,32.15213523,195.11,195.0,67.5]
[1735444096797,8.09177633,195.11,195.0,67.5]
[1735444097884,8.09177633,195.12,195.0,67.5]
[1735444101801,8.09177633,195.12,195.01,6.4089]
[1735444103698,8.09177633,195.13,195.01,6.4089]
[1735444105407,8.09177633,195.13,195.01,73.9089]
[1735444106206,8.09177633,195.12,195.01,73.9089]
[1735444110189,8.09177633,195.12,195.02,1.5892]
[1735444110992,8.09177633,195.11,195.02,69.8581275]
[1735444111822,8.09177633,195.13,195.02,69.8581275]
[1735444122239,8.09177633,195.12,195.02,69.8581275]
[1735444123308,8.09177633,195.12,195.02,80.03420435]
[1735444124047,8.09177633,195.12,195.02,69.8581275]
[1735444124214,8.09177633,195.12,195.02,80.03420435]
[1735444125354,8.09177633,195.12,195.05,87.5]
[1735444126048,8.09177633,195.13,195.05,87.5]
[1735444128857,8.09177633,195.13,195.1,17.96777685]
[1735444129021,8.09177633,195.13,195.12,30.17607685]
[1735444129217,8.09177633,195.13,195.12,122.22147911]
[1735444129454,8.09177633,195.13,195.12,121.45296085]
[1735444129624,6.42517633,195.13,195.12,121.45296085]
[1735444129827,16.15096467,195.15,195.13,97.477684]
[1735444130041,16.15096467,195.15,195.14,10.94451116]
[1735444130244,16.15096467,195.15,195.14,102.22139516]
[1735444130545,16.15096467,195.22,195.18,67.5]